bitfinex-derivatives/quotes_ETHF0:USTF0_20250404
["timestamp","ask_amount","ask_price","bid_price","bid_amount"]
[1743771932681,1.11273,1797.7,1797.6,4.32059]
[1743771932882,1.11273,1797.7,1797.6,3.2078]
[1743771933083,4.31961,1797.8,1797.6,4.32057]
[1743771933285,4.31961,1797.8,1797.7,2.9942]
[1743771933879,1.11273,1797.7,1797.6,3.2078]
[1743771934082,4.31963,1797.7,1797.6,4.32056]
[1743771934381,1.11279,1797.6,1797.5,2.9942]
[1743771934581,3.2069,1797.7,1797.5,2.9942]
[1743771934777,4.96433633,1798.0,1797.6,3.2078]
[1743771935087,1.11267,1797.8,1797.7,3.2603]
[1743771935387,0.00833633,1798.0,1797.8,1.11263]
[1743771935583,0.00833633,1798.0,1797.7,2.8219]
[1743771935584,1.11267,1797.8,1797.7,2.8219]
[1743771935785,2.78982633,1798.0,1797.7,6.0822]
[1743771935786,0.00833633,1798.0,1797.7,6.0822]
[1743771935982,1.11235,1798.4,1797.9,3.2078]
[1743771936184,3.0185,1798.9,1798.3,5.98863]
[1743771936390,1.11199,1798.9,1798.8,3.2078]
[1743771936695,1.11199,1798.9,1798.8,44.0078]
[1743771936882,1.11199,1798.9,1798.8,40.8]
[1743771937085,6.81709,1798.9,1798.8,40.8]
[1743771937280,1.11205,1798.8,1798.7,0.00833633]
[1743771937583,10.51605,1798.8,1798.7,6.33e-06]
[1743771937890,13.01605,1798.8,1798.7,6.33e-06]
[1743771939087,2.78028,1798.7,1797.7,3.2078]
[1743771939289,2.78096,1798.3,1797.7,3.2078]
[1743771939489,1.11254,1798.0,1797.9,3.2078]
[1743771939988,2.78167,1797.8,1797.3,3.2078]
[1743771940196,1.11285,1797.5,1797.4,43.7662]
[1743771940392,1.11285,1797.5,1797.4,43.77453633]
[1743771941490,1.11283,1797.6,1797.4,43.77453633]
[1743771941689,1.11279,1797.6,1797.5,4.32062]
[1743771941897,1.11279,1797.6,1797.5,7.30692]
[1743771942093,4.29878633,1797.7,1797.5,7.30695]
[1743771942303,1.11279,1797.6,1797.5,7.30695]
[1743771942592,1.66922001,1798.2,1798.0,1.11252]
[1743771942786,1.66922001,1798.2,1798.1,2.9863]
[1743771942990,1.66922001,1798.2,1798.1,6.1941]
[1743771943497,4.37964,1798.4,1798.2,1.11239]
[1743771943695,1.11229,1798.4,1798.3,3.2078]
[1743771943991,1.11236,1798.3,1798.2,3.1949]
[1743771944191,1.11242,1798.2,1798.1,44.0078]
[1743771944897,1.11242,1798.2,1798.1,3.2078]
[1743771945298,1.1126,1797.9,1797.8,3.1949]
[1743771945498,1.1126,1797.9,1797.8,6.4027]
[1743771945894,1.1126,1797.9,1797.8,7.51537]
[1743771946087,1.1126,1797.9,1797.8,6.4027]
[1743771946493,1.1126,1797.9,1797.8,3.1949]
[1743771946695,1.11273,1797.7,1797.6,40.8]
[1743771947898,3.0541,1797.8,1797.6,40.8]
[1743771948093,1.11263,1797.9,1797.7,7.46268]
[1743771948398,1.1126,1797.9,1797.8,1.11263]
[1743771948593,1.11267,1797.8,1797.7,3.1422]
[1743771948788,4.16677,1797.8,1797.7,3.1422]
[1743771949195,1.11262,1797.9,1797.7,6.35]
[1743771949395,1.11262,1797.9,1797.8,1.11267]
[1743771950405,1.11262,1797.9,1797.7,7.46268]
[1743771950599,3.0541,1798.1,1797.7,6.35]
[1743771950793,8.70201,1798.3,1797.9,3.2078]
[1743771950997,1.11252,1798.1,1798.0,3.1255]
[1743771951298,1.11273,1797.7,1797.6,40.8]
[1743771953306,4.28673,1797.7,1797.6,40.8]
[1743771955504,1.11285,1797.5,1797.4,3.21613633]
[1743771955706,1.11285,1797.5,1797.4,0.00833633]
[1743771955906,1.11285,1797.5,1797.4,40.80833633]
[1743771956205,4.07475,1797.5,1797.4,40.80833633]
[1743771956407,4.63155001,1797.5,1797.4,40.80833633]
[1743771956909,1.11298,1797.3,1797.2,3.2078]
[1743771957506,5.7078,1797.3,1796.7,3.93111424]
[1743771957807,1.11329,1796.8,1796.7,6.2869]
[1743771958112,1.11329,1796.8,1796.7,47.0869]
[1743771958404,1.11329,1796.8,1796.7,44.0078]
[1743771958612,1.11329,1796.8,1796.7,40.8]
[1743771959104,4.951,1796.8,1796.6,0.00833633]
[1743771959310,10.34525,1796.7,1796.6,2e-08]
[1743771959513,13.94785001,1796.7,1796.6,2e-08]
[1743771959699,16.44785001,1796.7,1796.6,2e-08]
[1743771961013,1.11384,1795.9,1795.8,3.2078]
[1743771961715,1.11422,1795.3,1794.9,13.05270278]
[1743771962009,1.11429,1795.2,1795.1,40.8]
[1743771962604,1.11428,1795.2,1795.1,40.8]
[1743771962804,0.00833633,1795.3,1795.1,40.8]
[1743771963014,1.12255633,1795.3,1795.2,6.4147]
[1743771963407,0.00833633,1795.3,1795.2,8.9147]
[1743771963609,0.00833633,1795.3,1795.2,6.4147]
[1743771963806,1.12255633,1795.3,1795.2,47.2147]
[1743771964006,1.12255633,1795.3,1795.2,44.0069]
[1743771965314,1.12255633,1795.3,1795.2,40.8]
[1743771965510,0.00833633,1795.3,1795.0,0.00833633]
[1743771965810,1.11434,1795.1,1795.0,0.00833633]
[1743771966416,8.56634,1795.1,1795.0,0.00833633]
[1743771966619,6.06634,1795.1,1795.0,40.80833633]
[1743771966805,9.14174,1795.1,1795.0,40.80833633]
[1743771967010,1.11434,1795.1,1795.0,40.80833633]
[1743771967713,0.56593633,1795.3,1795.0,44.01613633]
[1743771968013,1.11428,1795.2,1795.1,2.9815]
[1743771968810,3.68713633,1795.3,1795.1,2.9815]
[1743771969016,0.00833633,1795.3,1795.2,4.32208]
[1743771969216,0.00833633,1795.3,1795.2,7.32718]
[1743771969417,0.00833633,1795.3,1795.2,12.80868]
[1743771969722,0.00833633,1795.3,1795.2,53.60868]
[1743771970216,3.34225,1795.9,1795.2,52.4944]
[1743771970408,1.11403,1795.6,1795.5,3.2078]
[1743771970610,1.11403,1795.6,1795.2,46.7866]
[1743771970611,1.11422,1795.3,1795.2,47.0129]
[1743771970804,1.11422,1795.3,1795.2,44.0078]
[1743771971215,1.11434,1795.1,1795.0,0.00833633]
[1743771972013,1.11434,1795.1,1795.0,3.27633633]
[1743771972211,1.11434,1795.1,1795.0,44.07633633]
[1743771974016,1.11434,1795.1,1795.0,40.80833633]
[1743771974221,3.61434,1795.1,1795.0,0.00833633]
[1743771974417,6.82214,1795.1,1795.0,0.00833633]
[1743771974717,4.26674,1795.1,1795.0,0.00833633]
[1743771974922,9.97454,1795.1,1795.0,0.00833633]
[1743771975521,4.26674,1795.1,1795.0,0.00833633]
[1743771976220,4.82434,1795.1,1795.0,0.00833633]
[1743771976620,7.32434,1795.1,1795.0,0.00833633]
[1743771976821,16.36014,1795.1,1795.0,6.33e-06]
[1743771977219,16.81631683,1795.1,1795.0,6.33e-06]
[1743771977418,1.11496,1794.1,1794.0,3.2078]
[1743771977625,1.11509,1793.9,1793.8,9.4341]
[1743771977822,1.11505,1794.0,1793.8,10.54921]
[1743771978020,1.11505,1794.0,1793.9,3.2323]
[1743771978418,1.11509,1793.9,1793.8,40.8]
[1743771978619,1.11509,1793.9,1793.8,40.80836097]
[1743771980032,2.78825,1793.6,1792.9,3.2078]
[1743771980227,4.952,1793.5,1793.2,2.9623]
[1743771980435,1.1154,1793.4,1793.3,40.91152623]
[1743771980632,4.2247,1793.4,1793.3,40.91152623]
[1743771981023,4.2247,1793.4,1793.3,44.11932623]
[1743771981228,4.952,1793.6,1793.3,44.11932623]
[1743771981429,4.952,1793.6,1793.4,6.28162001]
[1743771981430,1.11535,1793.5,1793.4,6.28162001]
[1743771982241,1.11532,1793.6,1793.4,6.28162001]
[1743771982434,1.11533,1793.5,1793.4,6.28162001]
[1743771982739,1.11531,1793.6,1793.4,47.08162001]
[1743771982930,1.11531,1793.6,1793.4,50.98491001]
[1743771983128,0.5576,1793.9,1793.5,1.11531]
[1743771983332,1.11521,1793.7,1793.6,3.1928]
[1743771984038,0.5576,1793.9,1793.6,3.1928]
[1743771984234,1.11515,1793.8,1793.7,3.2078]
[1743771984926,1.11521,1793.7,1793.6,3.1928]
[1743771985130,1.11521,1793.7,1793.5,3.2078]
[1743771985131,1.11527,1793.6,1793.5,3.2078]
[1743771985331,1.11533,1793.5,1793.4,40.8]
[1743771985931,3.0816,1793.6,1793.4,40.8]
[1743771986128,4.952,1793.8,1793.4,44.0078]
[1743771986336,6.06717,1793.8,1793.5,3.0632]
[1743771986531,3.2172,1793.7,1793.5,3.0632]
[1743771986733,1.11527,1793.6,1793.5,3.0632]
[1743771986934,3.2172,1793.7,1793.5,3.0632]
[1743771987246,1.11533,1793.5,1793.4,40.8]
[1743771987942,1.11526,1793.7,1793.4,44.0078]
[1743771988133,1.11533,1793.5,1793.4,40.8]
[1743771989036,1.11546,1793.3,1793.2,3.21616097]
[1743771989639,4.30976,1793.3,1793.2,3.21616097]
[1743771989839,4.30976,1793.3,1793.2,44.01616097]
[1743771992038,4.30976,1793.3,1793.2,3.21616097]
[1743771992438,7.36816,1793.3,1793.2,3.21616097]
[1743771992638,7.36816,1793.3,1793.2,0.00836097]
[1743771993344,10.57596,1793.3,1793.2,0.00836097]
[1743771994041,10.57596,1793.3,1793.2,9.7e-07]
[1743771995137,1.11596,1792.5,1792.4,2.9524]
[1743771995341,1.11596,1792.5,1792.4,6.2729]
[1743771995836,4.952,1792.6,1792.4,6.2729]
[1743771996042,1.11596,1792.5,1792.4,6.2729]
[1743771996237,1.67436,1792.5,1792.4,6.2729]
[1743771996443,1.11596,1792.5,1792.4,6.2729]
[1743771996638,1.11596,1792.5,1792.4,47.0729]
[1743771997234,1.67436,1792.5,1792.4,47.0729]
[1743771998441,0.00836097,1792.7,1792.4,49.5729]
[1743771998640,1.12419097,1792.7,1792.6,3.2078]
[1743771999351,1.12419097,1792.7,1792.6,44.0078]
[1743772000041,1.12419097,1792.7,1792.6,45.12369]
[1743772000244,1.12419097,1792.7,1792.6,44.0078]
[1743772001743,1.12419097,1792.7,1792.6,50.1742]
[1743772002143,1.12419097,1792.7,1792.6,46.9664]
[1743772002547,1.11596,1792.5,1792.4,3.2078]
[1743772002748,1.11596,1792.5,1792.4,6.3367]
[1743772003541,1.11602,1792.4,1792.3,0.0056702]
[1743772004046,4.15652,1792.4,1792.3,40.8056702]
[1743772004248,1.11602,1792.4,1792.3,40.8056702]
[1743772006853,11.53682,1792.4,1792.3,0.0056702]
[1743772007056,14.49112,1792.4,1792.3,2e-07]
[1743772007353,17.37902,1792.4,1792.3,2e-07]
[1743772007743,1.11639,1791.8,1791.7,3.2149]
[1743772008145,1.11639,1791.8,1791.7,3.9435569]
[1743772008353,1.11639,1791.8,1791.7,3.2149]
[1743772008750,1.11639,1791.8,1791.7,44.0149]
[1743772009054,1.1167,1791.3,1791.2,6.081]
[1743772009243,1.1167,1791.3,1791.2,6.8101043]
[1743772009449,0.00836097,1791.4,1791.2,6.8101043]
[1743772009651,1.12501097,1791.4,1791.3,0.72821039]
[1743772009857,1.12501097,1791.4,1791.3,41.52821039]
[1743772010355,1.12501097,1791.4,1791.3,44.75749949]
[1743772010552,1.12501097,1791.4,1791.3,40.8]
[1743772010745,1.12501097,1791.4,1791.3,44.0298]
[1743772010949,1.12501097,1791.4,1791.3,40.8]
[1743772011451,0.00836097,1791.4,1791.3,40.8]
[1743772011653,3.34945,1791.8,1791.3,54.06591931]
[1743772011854,1.11652,1791.6,1791.5,3.2078]
[1743772012156,1.11652,1791.6,1791.5,3.2298]
[1743772012746,4.27892,1791.6,1791.5,3.2298]
[1743772013152,1.11658,1791.5,1791.4,0.00836097]
[1743772013354,4.17158,1791.5,1791.4,0.00836097]
[1743772013651,0.00836097,1791.7,1791.4,13.74336097]
[1743772013958,0.00836097,1791.7,1791.5,4.86755999]
[1743772014153,0.00836097,1791.7,1791.6,47.085]
[1743772014353,1.12481097,1791.7,1791.6,43.8772]
[1743772016254,1.68321097,1791.7,1791.6,43.8772]
[1743772016560,1.68321097,1791.7,1791.6,40.8]
[1743772016759,6.63321097,1791.7,1791.6,40.8]
[1743772017050,1.11658,1791.5,1791.4,6.48346097]
[1743772017254,1.11677,1791.2,1791.1,2.8608]
[1743772017459,1.11677,1791.2,1791.1,3.2673]
[1743772017656,1.11677,1791.2,1791.1,44.0673]
[1743772019258,3.0926,1791.4,1791.1,44.0673]
[1743772019451,1.1167,1791.3,1791.2,3.2723]
[1743772021157,1.11677,1791.2,1791.1,40.8]
[1743772021346,4.16147,1791.2,1791.1,40.8]
[1743772021752,1.11677,1791.2,1791.1,40.8]
[1743772023456,4.34807,1791.2,1791.1,40.8]
[1743772023657,1.11708,1790.7,1790.6,2.8608]
[1743772024357,1.11726,1790.4,1790.3,3.2078]
[1743772024556,0.5592,1790.6,1790.3,44.0078]
[1743772024758,1.12558097,1790.5,1790.3,45.12509]
[1743772025059,1.12558097,1790.5,1790.4,3.03]
[1743772025254,1.12561097,1790.5,1790.3,45.12511]
[1743772025559,1.12561097,1790.5,1790.4,3.2111]
[1743772025754,0.00836097,1790.5,1790.4,4.32836]
[1743772026054,0.00836097,1790.5,1790.4,7.55482751]
[1743772026247,1.12556097,1790.5,1790.4,5.7111]
[1743772026650,0.00836097,1790.5,1790.4,6.82836]
[1743772027156,1.12556097,1790.5,1790.4,7.55478136]
[1743772027347,1.12556097,1790.5,1790.4,4.32836]
[1743772027549,1.12556097,1790.5,1790.4,3.2111]
[1743772028355,1.12556097,1790.5,1790.3,40.8]
[1743772028356,1.11726,1790.4,1790.3,40.8]
[1743772028561,4.32996,1790.4,1790.3,40.8]
[1743772029050,2.79342,1790.3,1789.9,3.2078]
[1743772029250,2.79395,1789.9,1789.5,3.2078]
[1743772029457,1.11783,1789.5,1789.4,8.7936]
[1743772029660,1.11783,1789.5,1789.4,49.5936]
[1743772030049,1.11783,1789.5,1789.4,43.9705]
[1743772030250,1.11783,1789.5,1789.4,40.8]
[1743772030655,1.67703,1789.5,1789.4,40.8]
[1743772030849,4.88483,1789.5,1789.4,40.8]
[1743772031049,1.67703,1789.5,1789.4,40.8]
[1743772031557,9.83483,1789.5,1789.4,40.8]
[1743772031763,6.62703,1789.5,1789.4,40.8]
[1743772031962,11.217,1789.5,1789.1,3.2078]
[1743772032155,1.11801,1789.2,1789.1,3.2078]
[1743772032354,8.81903,1789.4,1788.8,3.0105]
[1743772032355,10.9733,1789.4,1788.9,1.11815]
[1743772032563,1.11798,1789.3,1789.0,44.92864]
[1743772032759,12.09124,1789.4,1789.1,1.11807]
[1743772033063,1.11795,1789.3,1789.2,3.0105]
[1743772033457,9.0675,1789.4,1789.2,3.0105]
[1743772033660,1.11795,1789.3,1789.2,3.0105]
[1743772033953,0.00836097,1789.5,1789.4,1.11789]
[1743772034266,1.12621097,1789.5,1789.2,4.12847]
[1743772034457,0.00836097,1789.5,1789.2,3.0105]
[1743772034761,4.33399097,1789.5,1789.4,40.8]
[1743772035156,1.12619097,1789.5,1789.4,40.8]
[1743772035954,0.56756097,1789.5,1789.4,40.8]
[1743772036266,1.68539097,1789.5,1789.4,40.8]
[1743772036656,0.56756097,1789.5,1789.4,40.8]
[1743772036853,1.68539097,1789.5,1789.4,40.8]
[1743772037061,0.56756097,1789.5,1789.4,44.0455]
[1743772037262,0.00836097,1789.5,1789.4,45.16339]
[1743772037864,0.00836097,1789.5,1789.4,47.66339]
[1743772038358,1.12619097,1789.5,1789.4,46.5455]
[1743772038668,0.00836097,1789.5,1789.4,46.5455]
[1743772038958,5.828,1790.8,1789.4,52.5115]
[1743772039158,0.5592,1790.4,1789.9,3.2078]
[1743772039367,1.1174,1790.2,1790.1,1.11744]
[1743772039553,1.1173,1790.4,1790.2,1.11734]
[1743772039754,1.1173,1790.4,1790.3,3.1101]
[1743772041075,1.11726,1790.4,1790.3,3.1101]
[1743772041562,0.00838456,1790.5,1790.4,1.11726]
[1743772041864,0.00838456,1790.5,1790.4,4.32506]
[1743772042067,1.11705,1790.8,1790.7,1.11708]
[1743772042267,1.11694,1791.0,1790.7,44.0078]
[1743772042467,1.11694,1791.0,1790.9,3.2078]
[1743772042664,1.11695,1790.9,1790.8,2.9998]
[1743772043063,6.38125,1791.2,1790.8,4.11677]
[1743772043362,0.00838456,1791.0,1790.9,1.11695]
[1743772043573,1.12527456,1791.0,1790.9,3.2078]
[1743772043766,0.00838456,1791.0,1790.9,6.82475]
[1743772044359,1.12527456,1791.0,1790.9,6.82475]
[1743772044557,0.00838456,1791.0,1790.9,5.7078]
[1743772044766,0.00838456,1791.0,1790.9,6.82475]
[1743772048070,0.00838456,1791.0,1790.9,4.32475]
[1743772048766,0.00838456,1791.0,1790.9,6.82475]
[1743772049163,1.12527456,1791.0,1790.9,3.2078]
[1743772049367,0.00838456,1791.0,1790.9,4.32475]
[1743772050071,1.12527456,1791.0,1790.9,4.32475]
[1743772050274,0.00838456,1791.0,1790.9,4.32475]
[1743772051079,0.00838456,1791.0,1790.9,1.11695]
[1743772051277,0.00838456,1791.0,1790.9,4.32475]
[1743772051467,0.00838456,1791.0,1790.9,45.12475]
[1743772054269,0.00838456,1791.0,1790.7,2.7927]
[1743772054270,1.11714,1790.6,1790.4,1.11722]
[1743772054475,7.23387,1790.9,1790.7,1.11703]
[1743772054676,6.1169,1790.9,1790.5,3.2078]
[1743772054980,1.11712,1790.7,1790.6,40.8]
[1743772055368,7.74476456,1791.0,1790.6,2.79286]
[1743772055369,0.00838456,1791.0,1790.6,2.79286]
[1743772055572,0.00838456,1791.0,1790.9,1.11695]
[1743772055965,0.00838456,1791.0,1790.9,41.91695]
[1743772056171,0.00838456,1791.0,1790.9,44.41695]
[1743772056667,0.00838456,1791.0,1790.9,41.91695]
[1743772057066,1.12527456,1791.0,1790.9,41.91695]
[1743772057266,0.00838456,1791.0,1790.9,40.8]
[1743772057473,0.00838456,1791.0,1790.9,41.91695]
[1743772057877,1.12527456,1791.0,1790.9,40.8]
[1743772058282,1.11709,1790.7,1790.6,1.11711]
[1743772058472,1.11706,1790.8,1790.6,1.11711]
[1743772058673,0.00838456,1791.0,1790.7,40.8]
[1743772058982,1.11695,1790.9,1790.7,41.91703]
[1743772059177,1.11702,1790.8,1790.7,41.91703]
[1743772059682,1.11702,1790.8,1790.7,40.8]
[1743772060280,5.8425,1790.9,1790.7,40.8]
[1743772060477,5.8425,1790.9,1790.8,1.11702]
[1743772060478,3.0367,1790.9,1790.8,1.11702]
[1743772060683,1.12532456,1791.0,1790.8,2.8988]
[1743772060882,1.11695,1790.9,1790.8,4.0158]
[1743772061079,0.00838456,1791.0,1790.9,1.11695]
[1743772061378,0.00838456,1791.0,1790.9,7.22355]
[1743772063773,0.00838456,1791.0,1790.9,9.72355]
[1743772063974,0.5584,1791.5,1791.4,1.11659]
[1743772064182,0.5584,1791.5,1791.4,3.2078]
[1743772064183,1.11658,1791.5,1791.4,3.2078]
[1743772064780,1.11658,1791.5,1791.4,6.1873]
[1743772064987,1.67498,1791.5,1791.4,6.1873]
[1743772065185,1.11658,1791.5,1791.4,6.1873]
[1743772065780,1.12494456,1791.6,1791.4,6.1873]
[1743772065985,4.26145456,1791.6,1791.4,6.1873]
[1743772066282,3.14488456,1791.6,1791.4,6.1873]
[1743772066483,1.11658,1791.5,1791.4,6.1873]
[1743772066889,1.11658,1791.5,1791.4,3.2078]
[1743772067282,1.11664,1791.4,1791.3,0.00838456]
[1743772067488,7.19064,1791.4,1791.3,0.00838456]
[1743772067689,7.19064,1791.4,1790.8,3.026]
[1743772067690,8.574,1791.4,1790.8,3.026]
[1743772067881,6.074,1791.4,1790.9,6.72935782]
[1743772068183,6.074,1791.4,1791.0,2.9884]
[1743772068387,6.074,1791.4,1791.2,1.11675]
[1743772068388,7.19068,1791.4,1791.2,1.11675]
[1743772068790,6.074,1791.4,1791.2,1.11673]
[1743772069083,8.86562,1791.4,1791.1,0.00838456]
[1743772069294,1.11672,1791.3,1791.2,1.11674]
[1743772069586,2.9375,1791.4,1791.2,1.84695623]
[1743772069886,2.9375,1791.4,1791.3,4.1051]
[1743772070085,3.177,1791.5,1791.4,1.11664]
[1743772070287,3.177,1791.5,1791.4,4.10504]
[1743772071489,1.11666,1791.4,1791.1,1.12516456]
[1743772071686,3.0848,1791.3,1791.2,1.84750877]
[1743772072089,3.0848,1791.3,1791.1,0.00838456]
[1743772072390,1.11677,1791.2,1791.1,0.00838456]
[1743772072595,6.96947,1791.2,1791.1,0.00838456]
[1743772072796,8.9375,1791.2,1791.1,1.12521456]
[1743772073091,1.11658,1791.5,1791.1,3.9472931]
[1743772073282,4.12918,1791.5,1791.1,6.13658456]
[1743772073598,3.0848,1791.4,1791.3,1.1167]
[1743772074181,3.0848,1791.4,1791.3,5.05549427]
[1743772074582,2.91608456,1791.6,1791.3,5.05549427]
[1743772074583,2.91608456,1791.6,1791.5,1.11658]
[1743772074897,3.05238456,1791.6,1791.5,1.84741475]
[1743772075195,3.05238456,1791.6,1791.5,4.32438]
[1743772075390,3.05238456,1791.6,1791.5,5.05507266]
[1743772075586,0.00838456,1791.6,1791.5,5.05507266]
[1743772076189,1.11636,1791.9,1791.5,7.55507266]
[1743772076388,1.11636,1791.9,1791.4,8.0877]
[1743772076389,3.6024,1791.9,1791.7,1.11644]
[1743772076691,1.11661,1791.5,1791.2,3.2078]
[1743772076894,2.79099,1791.8,1791.3,0.73031323]
[1743772077095,6.8102,1791.9,1791.5,1.11655]
[1743772077096,3.044,1791.7,1791.5,1.11655]
[1743772077288,3.05238456,1791.7,1791.6,40.8]
[1743772077489,3.05238456,1791.7,1791.4,3.2078]
[1743772077789,3.05238456,1791.7,1791.6,4.32432]
[1743772078092,3.05238456,1791.7,1791.6,45.12432]
[1743772078292,3.05238456,1791.7,1791.6,41.91652]
[1743772078493,3.05238456,1791.7,1791.6,45.12432]
[1743772079089,0.00838456,1791.7,1791.6,45.8539971]
[1743772079689,0.00838456,1791.7,1791.5,1.11653]
[1743772079889,0.00838456,1791.7,1791.6,4.32432]
[1743772080303,0.00838456,1791.7,1791.6,45.85346229]
[1743772081295,0.00838456,1791.7,1791.6,45.12432]
[1743772081495,0.00838456,1791.7,1791.6,44.0078]
[1743772081700,0.00838456,1791.7,1791.6,45.12432]
[1743772082401,0.00838456,1791.7,1791.6,41.91652]
[1743772082897,4.13283456,1791.7,1791.6,40.8]
[1743772083096,4.13283456,1791.7,1791.4,3.0786]
[1743772083299,0.00838456,1791.7,1791.6,4.32432]
[1743772083495,0.00838456,1791.7,1791.6,48.96028867]
[1743772084090,0.00838456,1791.7,1791.6,43.9075]
[1743772084299,1.12483456,1791.7,1791.6,43.9075]
[1743772084500,0.00838456,1791.7,1791.6,41.91652]
[1743772084709,1.12483456,1791.7,1791.6,40.8]
[1743772085010,0.00838456,1791.7,1791.6,41.91652]
[1743772085397,3.04418456,1791.7,1791.6,41.91652]
[1743772085801,3.04418456,1791.7,1791.6,45.12432]
[1743772086000,0.00838456,1791.7,1791.6,45.85297708]
[1743772086898,1.12483456,1791.7,1791.6,44.0078]
[1743772087205,1.12483456,1791.7,1791.1,16.53677456]
[1743772087206,9.13734456,1791.7,1791.3,1.11669]
[1743772087397,3.2078,1791.5,1791.1,0.00838456]
[1743772087598,1.11677,1791.2,1791.1,0.00838456]
[1743772087903,4.32457,1791.2,1791.1,0.00838456]
[1743772088101,6.82457,1791.2,1791.1,0.00838456]
[1743772088503,1.11677,1791.2,1791.1,40.8]
[1743772089799,6.82457,1791.2,1791.1,40.8]
[1743772090307,6.82457,1791.2,1790.7,6.2937]
[1743772090308,2.79208,1791.1,1790.5,3.2078]
[1743772090507,1.11708,1790.7,1790.6,0.73042535]
[1743772090804,2.79244,1790.9,1790.5,6.1437]
[1743772091005,5.92407,1790.8,1790.5,6.1437]
[1743772091205,1.11714,1790.6,1790.5,6.1437]
[1743772091602,1.1172,1790.5,1790.4,0.00838456]
[1743772091809,4.2487,1790.5,1790.4,40.80838456]
[1743772096596,15.2265,1790.5,1789.5,3.2078]
[1743772096799,2.79395,1789.9,1789.3,3.0852]
[1743772096998,2.79395,1789.9,1789.4,2.8176]
[1743772097204,1.11773,1789.7,1789.5,4.20298]
[1743772097396,2.79395,1789.9,1789.5,4.20298]
[1743772097397,1.11776,1789.6,1789.5,4.20298]
[1743772097604,1.11776,1789.6,1789.5,45.00298]
[1743772097806,1.11776,1789.6,1789.5,43.8852]
[1743772098696,4.32556,1789.6,1789.5,43.8852]
[1743772098903,1.11776,1789.6,1789.5,40.8]
[1743772099398,4.32556,1789.6,1789.5,40.8]
[1743772101899,6.82556,1789.6,1789.5,40.8]
[1743772102300,4.32556,1789.6,1789.5,40.8]
[1743772102499,1.11776,1789.6,1789.5,40.8]
[1743772103009,4.07876,1789.6,1789.5,40.8]
[1743772104007,1.11776,1789.6,1789.5,40.8]
[1743772105612,0.00838456,1789.7,1789.5,41.91777]
[1743772105918,1.12608456,1789.7,1789.6,3.0252]
[1743772106913,1.11776,1789.6,1789.5,40.8]
[1743772107107,4.27416,1789.6,1789.5,43.8252]
[1743772107707,4.27416,1789.6,1789.5,40.8]
[1743772108513,9.98196,1789.6,1789.5,40.8]
[1743772108816,13.03136,1789.6,1789.5,40.8]
[1743772110116,17.96136,1789.6,1789.5,40.8]
[1743772110310,22.99167,1789.6,1789.1,3.2078]
[1743772110516,1.11801,1789.2,1789.1,6.3647]
[1743772110710,1.11801,1789.2,1789.0,2.7887]
[1743772110711,1.1182,1788.9,1788.8,6.0544]
[1743772111318,1.1182,1788.9,1788.8,46.8544]
[1743772112014,1.1182,1788.9,1788.8,49.7873]
[1743772112216,1.1182,1788.9,1788.8,40.8]
[1743772112711,4.2326,1788.9,1788.8,40.8]
[1743772114516,1.1182,1788.9,1788.8,40.8]
[1743772114817,6.00289,1789.2,1788.8,40.8]
[1743772115017,1.1182,1788.9,1788.8,40.8]
[1743772116410,1.6774,1788.9,1788.8,40.8]
[1743772116610,4.5833,1788.9,1788.8,40.8]
[1743772116810,3.35441,1789.1,1788.8,40.8]
[1743772117011,1.11814,1789.0,1788.9,3.0241]
[1743772117211,1.11814,1789.0,1788.9,6.0337]
[1743772119614,2.79517,1789.2,1788.9,7.15186]
[1743772119808,1.11814,1789.0,1788.9,6.0337]
[1743772120206,1.11814,1789.0,1788.9,7.1519]
[1743772120414,1.11814,1789.0,1788.9,9.65185]
[1743772120618,1.11814,1789.0,1788.9,9.6519]
[1743772121211,1.11814,1789.0,1788.9,10.38146566]
[1743772121416,1.11814,1789.0,1788.9,6.0337]
[1743772122009,1.11814,1789.0,1788.9,10.38152992]
[1743772122208,1.1182,1788.9,1788.8,40.8]
[1743772123419,5.59068,1789.1,1788.8,46.5078]
[1743772123619,1.1182,1788.9,1788.8,45.12603]
[1743772123821,1.11814,1789.0,1788.9,1.1182]
[1743772124115,1.1182,1788.9,1788.8,44.0078]
[1743772124320,1.1182,1788.9,1788.8,42.64878013]
[1743772124518,1.1182,1788.9,1788.8,41.53052013]
[1743772124719,4.326,1788.9,1788.8,40.8]
[1743772127618,1.11858,1788.3,1788.2,2.9241]
[1743772127818,1.11857,1788.4,1788.2,4.77626459]
[1743772128019,1.12695456,1788.4,1788.3,0.73352459]
[1743772128319,0.00838456,1788.4,1788.3,1.85210459]
[1743772128625,0.00838456,1788.4,1788.3,42.65210459]
[1743772129220,1.12689456,1788.4,1788.3,41.53352459]
[1743772130024,0.00838456,1788.4,1788.3,41.5334521]
[1743772130324,1.12689456,1788.4,1788.3,40.8]
[1743772130716,4.33469456,1788.4,1788.3,40.8]
[1743772132928,1.12689456,1788.4,1788.3,40.8]
[1743772136429,4.09089456,1788.4,1788.3,40.8]
[1743772136622,7.29869456,1788.4,1788.3,40.8]
[1743772139531,9.79869456,1788.4,1788.3,40.8]
[1743772140525,1.11864,1788.2,1788.1,0.21041866]
[1743772140727,9.24744,1788.2,1788.1,0.21041866]
[1743772141327,12.30474,1788.2,1788.1,0.21041866]
[1743772141527,12.30474,1788.2,1788.1,41.01041866]
[1743772142932,3.2078,1788.2,1788.1,41.01041866]
[1743772143133,1.11861,1788.3,1788.1,42.12911866]
[1743772143433,3.21618456,1788.4,1788.2,4.0792]
[1743772143434,1.12691456,1788.4,1788.2,4.0792]
[1743772143624,0.00838456,1788.4,1788.2,2.9606]